{"text_format":"3","workbook":"xlsx","n_sheets":2,"sheets":["Öğretmenin Listesi"," Liste Verileri"],"not_rendered":{"defined_names":6},"read":"whole","date_system":"1900"}

{"sheet":"Öğretmenin Listesi","index":0,"n_rows":10,"n_cols":10,"rows_kept":10,"merged":[[0,1,0,2],[0,4,0,8],[2,9,6,9]]}
[null,"Öğretmenin Listesi",null,"Liste Verileri","Durum için Renk Göstergesi bu hücrededir Başlanmadı normal stildedir, Sürüyor R=91 G=133 B=49, Süresi Bugün Doluyor R=118 G=88 B=0, Beklemede R=109 G=66 B=111, Tamamlandı Üstü çizili, İptal Edildi R=191 G=191 B=191 ve Süresi Geçmiş R=191 G=33 B=28’dir."]
[null,"ÖĞE","KATEGORİ","BAŞLANGIÇ TARİHİ","SON TARİH","KALAN GÜN","DURUM","NOTLAR"]
[null,"Çekmeceleri temizle","Office",{"$f":"DATE(YEAR(TODAY()),MONTH(TODAY())-1,6)","v":"2018-04-06"},{"$f":"DATE(YEAR(TODAY()),MONTH(TODAY())-1,16)","v":"2018-04-16"},{"$f":"IFERROR(IF(COUNT(Liste[[#This Row],[BAŞLANGIÇ TARİHİ]]:Liste[[#This Row],[SON TARİH]])<>2,\"\",IF(OR(Liste[[#This Row],[DURUM]]=\"Tamamlanan\",Liste[[#This Row],[DURUM]]=\"İptal Edildi\",Liste[[#This Row],[DURUM]]=\"Beklemede\"),\"\",Liste[[#This Row],[SON TARİH]]-TODAY())),\"\")","v":""},"Tamamlanan",null,null,"Durum dilimleyicisi bu hücrededir. Bir listeyi duruma göre filtrelemek için dilimleyiciden bir durum seçin. Birden çok seçenek belirlemek için CTRL tuşuna basılı tutun."]
[null,"Etiket siparişi ver","Malzemeler",{"$f":"DATE(YEAR(TODAY()),MONTH(TODAY())-1,11)","v":"2018-04-11"},{"$f":"DATE(YEAR(TODAY()),MONTH(TODAY())-1,21)","v":"2018-04-21"},{"$f":"IFERROR(IF(COUNT(Liste[[#This Row],[BAŞLANGIÇ TARİHİ]]:Liste[[#This Row],[SON TARİH]])<>2,\"\",IF(OR(Liste[[#This Row],[DURUM]]=\"Tamamlanan\",Liste[[#This Row],[DURUM]]=\"İptal Edildi\",Liste[[#This Row],[DURUM]]=\"Beklemede\"),\"\",Liste[[#This Row],[SON TARİH]]-TODAY())),\"\")","v":""},"Tamamlanan"]
[null,"Yerler paspaslandı ve cilalandı","Diğer",{"$f":"DATE(YEAR(TODAY()),MONTH(TODAY()-1),DAY(TODAY())-25)","v":"2018-04-15"},{"$f":"DATE(YEAR(TODAY()),MONTH(TODAY())-1,26)","v":"2018-04-26"},{"$f":"IFERROR(IF(COUNT(Liste[[#This Row],[BAŞLANGIÇ TARİHİ]]:Liste[[#This Row],[SON TARİH]])<>2,\"\",IF(OR(Liste[[#This Row],[DURUM]]=\"Tamamlanan\",Liste[[#This Row],[DURUM]]=\"İptal Edildi\",Liste[[#This Row],[DURUM]]=\"Beklemede\"),\"\",Liste[[#This Row],[SON TARİH]]-TODAY())),\"\")","v":""},"Tamamlanan"]
[null,"Ad etiketleri oluşturuldu","Malzemeler",{"$f":"DATE(YEAR(TODAY()),MONTH(TODAY())-1,21)","v":"2018-04-21"},{"$f":"DATE(YEAR(TODAY()),MONTH(TODAY())-1,1)","v":"2018-04-01"},{"$f":"IFERROR(IF(COUNT(Liste[[#This Row],[BAŞLANGIÇ TARİHİ]]:Liste[[#This Row],[SON TARİH]])<>2,\"\",IF(OR(Liste[[#This Row],[DURUM]]=\"Tamamlanan\",Liste[[#This Row],[DURUM]]=\"İptal Edildi\",Liste[[#This Row],[DURUM]]=\"Beklemede\"),\"\",Liste[[#This Row],[SON TARİH]]-TODAY())),\"\")","v":""},"Beklemede"]
[null,"Yazılı raporların çeyreğini notlandır","Değerlendirmeler",{"$f":"DATE(YEAR(TODAY()),MONTH(TODAY())-1,26)","v":"2018-04-26"},{"$f":"TODAY()-5","v":"2018-05-05"},{"$f":"IFERROR(IF(COUNT(Liste[[#This Row],[BAŞLANGIÇ TARİHİ]]:Liste[[#This Row],[SON TARİH]])<>2,\"\",IF(OR(Liste[[#This Row],[DURUM]]=\"Tamamlanan\",Liste[[#This Row],[DURUM]]=\"İptal Edildi\",Liste[[#This Row],[DURUM]]=\"Beklemede\"),\"\",Liste[[#This Row],[SON TARİH]]-TODAY())),\"\")","v":-5},"Süresi Geçmiş"]
[null,"İzin Kağıtları için E-posta Hatırlatıcısı","Telefon aramaları",{"$f":"DATE(YEAR(TODAY()),MONTH(TODAY()),1)","v":"2018-05-01"},{"$f":"TODAY()","v":"2018-05-10"},{"$f":"IFERROR(IF(COUNT(Liste[[#This Row],[BAŞLANGIÇ TARİHİ]]:Liste[[#This Row],[SON TARİH]])<>2,\"\",IF(OR(Liste[[#This Row],[DURUM]]=\"Tamamlanan\",Liste[[#This Row],[DURUM]]=\"İptal Edildi\",Liste[[#This Row],[DURUM]]=\"Beklemede\"),\"\",Liste[[#This Row],[SON TARİH]]-TODAY())),\"\")","v":""},"İptal Edildi"]
[null,"Sözlü raporları notlandır","Office",{"$f":"DATE(YEAR(TODAY()),MONTH(TODAY()),7)","v":"2018-05-07"},{"$f":"DATE(YEAR(TODAY()),MONTH(TODAY()),17)","v":"2018-05-17"},{"$f":"IFERROR(IF(COUNT(Liste[[#This Row],[BAŞLANGIÇ TARİHİ]]:Liste[[#This Row],[SON TARİH]])<>2,\"\",IF(OR(Liste[[#This Row],[DURUM]]=\"Tamamlanan\",Liste[[#This Row],[DURUM]]=\"İptal Edildi\",Liste[[#This Row],[DURUM]]=\"Beklemede\"),\"\",Liste[[#This Row],[SON TARİH]]-TODAY())),\"\")","v":7},"Sürüyor"]
[null,"Kalemlerin ucunu aç","Malzemeler",{"$f":"DATE(YEAR(TODAY()),MONTH(TODAY()),11)","v":"2018-05-11"},{"$f":"DATE(YEAR(TODAY()),MONTH(TODAY()),10)","v":"2018-05-10"},{"$f":"IFERROR(IF(COUNT(Liste[[#This Row],[BAŞLANGIÇ TARİHİ]]:Liste[[#This Row],[SON TARİH]])<>2,\"\",IF(OR(Liste[[#This Row],[DURUM]]=\"Tamamlanan\",Liste[[#This Row],[DURUM]]=\"İptal Edildi\",Liste[[#This Row],[DURUM]]=\"Beklemede\"),\"\",Liste[[#This Row],[SON TARİH]]-TODAY())),\"\")","v":0},"Sürüyor"]

{"sheet":" Liste Verileri","index":1,"n_rows":13,"n_cols":3,"rows_kept":13}
[null,"Liste Verileri","Öğretmenin Listesi"]
[null,"Kategori"]
[null,"Office"]
[null,"Malzemeler"]
[null,"Satın alınacaklar"]
[null,"Telefon aramaları"]
[null,"Yeni fikirler"]
[null,"Değerlendirmeler"]
[null,"Ekip"]
[null,"Müdahaleler"]
[null,"Bilgisayar"]
[null,"Kişisel"]
[null,"Diğer"]